bitfinex/quotes_BTCUSD_20221001
["timestamp","ask_amount","ask_price","bid_price","bid_amount"]
[1664611715237,0.99067324,19329.0,19328.0,0.335812]
[1664611715722,0.9500953,19329.0,19328.0,0.335812]
[1664611715939,0.9280953,19329.0,19328.0,0.258812]
[1664611716623,0.9490953,19329.0,19328.0,0.334812]
[1664611717125,0.98967324,19329.0,19328.0,0.334812]
[1664611718054,0.96867324,19329.0,19328.0,0.258812]
[1664611718755,0.98667324,19329.0,19328.0,0.334812]
[1664611719884,0.96867324,19329.0,19328.0,0.258812]
[1664611720811,0.98667324,19329.0,19328.0,0.334812]
[1664611721041,0.93036324,19329.0,19328.0,0.334812]
[1664611721919,0.91236324,19329.0,19328.0,0.258812]
[1664611722836,0.98667324,19329.0,19328.0,0.334812]
[1664611724001,1.10329821,19329.0,19328.0,0.334812]
[1664611724449,1.08529821,19329.0,19328.0,0.258812]
[1664611724707,1.10329821,19329.0,19328.0,0.334812]
[1664611725795,1.10329486,19329.0,19328.0,0.334812]
[1664611726050,1.08529486,19329.0,19328.0,0.258812]
[1664611726749,1.10129486,19329.0,19328.0,0.333812]
[1664611726986,1.06072027,19329.0,19328.0,0.333812]
[1664611727204,1.1012964,19329.0,19328.0,0.333812]
[1664611727863,1.08529632,19329.0,19328.0,0.258812]
[1664611728310,1.12591461,19329.0,19328.0,0.258812]
[1664611728524,1.04472027,19329.0,19328.0,0.258812]
[1664611728754,1.14591461,19329.0,19328.0,0.334812]
[1664611729188,1.06472027,19329.0,19328.0,0.334812]
[1664611729421,1.14591461,19329.0,19328.0,0.334812]
[1664611729801,1.14591461,19329.0,19328.0,0.258812]
[1664611730056,1.12591461,19329.0,19328.0,0.258812]
[1664611730627,1.07018461,19329.0,19328.0,0.258812]
[1664611730847,1.09018461,19329.0,19328.0,0.334812]
[1664611731488,1.14591461,19329.0,19328.0,0.334812]
[1664611731713,1.14591461,19329.0,19328.0,0.07592239]
[1664611731714,1.72643341,19329.0,19328.0,0.07592239]
[1664611731935,2.70425991,19329.0,19328.0,0.07592239]
[1664611732197,0.25873185,19328.0,19327.0,0.1349711]
[1664611732426,1.82593177,19328.0,19327.0,0.1349711]
[1664611732861,1.9070959,19328.0,19327.0,0.1349711]
[1664611733082,1.82593177,19328.0,19327.0,0.1349711]
[1664611733302,1.90709497,19328.0,19327.0,0.1349711]
[1664611733838,1.76373102,19328.0,19327.0,0.1349711]
[1664611734043,1.86518631,19328.0,19327.0,0.1349711]
[1664611734280,1.90783096,19328.0,19327.0,0.1349711]
[1664611734515,1.82459528,19328.0,19327.0,0.1349711]
[1664611734767,1.83359528,19328.0,19327.0,0.2039711]
[1664611736088,1.82459528,19328.0,19327.0,0.1349711]
[1664611736767,1.83359528,19328.0,19327.0,0.2039711]
[1664611737229,1.87418631,19328.0,19327.0,0.2039711]
[1664611737455,1.77273102,19328.0,19327.0,0.2039711]
[1664611737922,1.77273102,19328.0,19327.0,0.1349711]
[1664611738133,1.76373102,19328.0,19327.0,0.1349711]
[1664611738346,1.82458927,19328.0,19327.0,0.1349711]
[1664611738792,1.83158927,19328.0,19327.0,0.2009711]
[1664611740023,1.82458927,19328.0,19327.0,0.1349711]
[1664611740245,1.52348474,19328.0,19327.0,0.1349711]
[1664611740690,1.53048474,19328.0,19327.0,0.2009711]
[1664611741532,1.48989202,19328.0,19327.0,0.2009711]
[1664611742004,1.48289202,19328.0,19327.0,0.1349711]
[1664611742764,1.48989202,19328.0,19327.0,0.2009711]
[1664611744035,1.75378985,19328.0,19327.0,0.1349711]
[1664611744252,1.7131963,19328.0,19327.0,0.1349711]
[1664611744699,1.45446445,19328.0,19327.0,0.1349711]
[1664611744975,1.46146445,19328.0,19327.0,0.2009711]
[1664611745664,1.4006062,19328.0,19327.0,0.2009711]
[1664611746123,1.3936062,19328.0,19327.0,0.1349711]
[1664611746355,1.45446445,19328.0,19327.0,0.1349711]
[1664611746578,1.3936062,19328.0,19327.0,0.1349711]
[1664611746803,1.4006062,19328.0,19327.0,0.2009711]
[1664611747531,1.0896062,19328.0,19327.0,0.2009711]
[1664611747751,0.51873144,19328.0,19327.0,0.2009711]
[1664611747972,0.51173144,19328.0,19327.0,0.1349711]
[1664611748846,0.55930109,19328.0,19327.0,0.2009711]
[1664611749146,0.51873144,19328.0,19327.0,0.2009711]
[1664611750279,0.51873144,19328.0,19327.0,0.1349711]
[1664611750514,0.51173144,19328.0,19327.0,0.1349711]
[1664611750976,0.51873144,19328.0,19327.0,0.2009711]
[1664611752068,0.51173144,19328.0,19327.0,0.1349711]
[1664611752809,0.51873144,19328.0,19327.0,0.78012688]
[1664611753016,0.007,19328.0,19327.0,0.78012688]
[1664611753244,0.007,19328.0,19327.0,0.93351055]
[1664611754164,0.00432386,19329.0,19327.0,0.86751055]
[1664611754384,0.5160553,19329.0,19328.0,0.54222377]
[1664611754602,0.5160553,19329.0,19328.0,0.18400077]
[1664611756019,0.5160553,19329.0,19327.0,0.58728755]
[1664611756255,0.51173144,19328.0,19327.0,0.16141041]
[1664611756488,0.51173144,19328.0,19327.0,0.86751055]
[1664611756946,0.51173144,19328.0,19327.0,0.94551055]
[1664611758015,0.51173144,19328.0,19327.0,0.86751055]
[1664611758862,0.51173144,19328.0,19327.0,0.94551055]
[1664611760049,0.51173144,19328.0,19327.0,0.50928755]
[1664611760315,0.51173144,19328.0,19327.0,0.86751055]
[1664611760537,0.51173144,19328.0,19327.0,0.50928755]
[1664611760763,0.51173144,19328.0,19327.0,0.16141041]
[1664611761001,0.51173144,19328.0,19327.0,0.59763341]
[1664611761229,0.51173144,19328.0,19327.0,0.23941041]
[1664611761450,0.51173144,19328.0,19327.0,0.94551055]
[1664611761677,0.51173144,19328.0,19327.0,0.59763341]
[1664611761902,0.51173144,19328.0,19327.0,0.94551055]
[1664611762115,0.51173144,19328.0,19327.0,0.86751055]
[1664611762336,0.51173144,19328.0,19327.0,0.50928755]
[1664611762561,0.51173144,19328.0,19327.0,0.4931941]
[1664611762830,0.51173144,19328.0,19327.0,0.2129711]
[1664611763048,0.51173144,19328.0,19327.0,0.56084824]
[1664611763258,0.51173144,19328.0,19327.0,0.91907124]
[1664611764229,0.51173144,19328.0,19327.0,0.48284824]
[1664611764407,0.51173144,19328.0,19327.0,0.56290436]
[1664611764849,0.51173144,19328.0,19327.0,0.64090436]
[1664611766183,0.51173144,19328.0,19327.0,0.56290436]
[1664611766873,0.51173144,19328.0,19327.0,0.64090436]
[1664611767102,0.5160553,19329.0,19327.0,0.64090436]
[1664611767315,0.5160553,19329.0,19328.0,0.05608482]
[1664611767538,0.49764513,19329.0,19327.0,0.29302722]
[1664611767769,0.49764513,19329.0,19327.0,0.64090436]
[1664611768024,0.49764513,19329.0,19327.0,0.29302722]
[1664611768274,0.49764513,19329.0,19327.0,0.56290436]
[1664611768957,0.49764513,19329.0,19327.0,0.64090436]
[1664611769168,0.49764513,19329.0,19327.0,0.2129711]
[1664611770043,0.49764513,19329.0,19327.0,0.1349711]
[1664611770485,0.47057668,19329.0,19327.0,0.1349711]
[1664611770759,0.51173144,19328.0,19327.0,0.1349711]
[1664611770977,0.51173144,19328.0,19327.0,0.2129711]
[1664611771203,0.51173144,19328.0,19327.0,0.2660395]
[1664611772169,0.51173144,19328.0,19327.0,0.1880395]
[1664611772827,0.51173144,19328.0,19327.0,0.2660395]
[1664611774122,0.51173144,19328.0,19327.0,0.5462625]
[1664611774354,0.51173144,19328.0,19327.0,0.1880395]
[1664611774866,0.51173144,19328.0,19327.0,0.2660395]
[1664611775087,0.51173144,19328.0,19327.0,0.5711941]
[1664611775234,0.51173144,19328.0,19327.0,0.2129711]
[1664611776148,0.51173144,19328.0,19327.0,0.1349711]
[1664611776778,0.51173144,19328.0,19327.0,0.2129711]
[1664611778115,0.51173144,19328.0,19327.0,0.1349711]
[1664611779042,0.51173144,19328.0,19327.0,0.2129711]
[1664611780188,0.51173144,19328.0,19327.0,0.1349711]
[1664611781024,0.51173144,19328.0,19327.0,0.2129711]
[1664611782158,0.51173144,19328.0,19327.0,0.1349711]
[1664611783046,0.51173144,19328.0,19327.0,0.2129711]
[1664611784194,0.51173144,19328.0,19327.0,0.1349711]
[1664611784921,0.51161592,19328.0,19327.0,0.2129711]
[1664611786282,0.51161592,19328.0,19327.0,0.1349711]
[1664611786948,0.53761592,19328.0,19327.0,0.2119711]
[1664611788255,0.51161592,19328.0,19327.0,0.1349711]
[1664611788912,0.53761592,19328.0,19327.0,0.2119711]
[1664611790062,0.51161592,19328.0,19327.0,0.1349711]
[1664611791013,0.53761592,19328.0,19327.0,0.2119711]
[1664611792132,0.53761592,19328.0,19327.0,0.1349711]
[1664611792344,0.51161592,19328.0,19327.0,0.1349711]
[1664611792947,0.51161592,19328.0,19327.0,0.2119711]
[1664611794260,0.51161592,19328.0,19327.0,0.1349711]
[1664611795132,0.51161592,19328.0,19327.0,0.2119711]
[1664611796340,0.81161592,19328.0,19327.0,0.1349711]
[1664611796898,0.81161592,19328.0,19327.0,0.2119711]
[1664611797671,0.51161592,19328.0,19327.0,0.2119711]
[1664611798323,0.51161592,19328.0,19327.0,0.1349711]
[1664611799031,0.51161592,19328.0,19327.0,0.2119711]
[1664611800239,0.51161592,19328.0,19327.0,0.1349711]
[1664611801125,0.51161592,19328.0,19327.0,0.2119711]
[1664611802442,0.51161592,19328.0,19327.0,0.14096388]
[1664611803098,0.83261592,19328.0,19327.0,0.21796388]
[1664611803559,0.53261592,19328.0,19327.0,0.21796388]
[1664611804652,0.53261592,19328.0,19327.0,0.14096388]
[1664611804904,0.51161592,19328.0,19327.0,0.14096388]
[1664611805131,0.53261592,19328.0,19327.0,0.56584102]
[1664611805349,0.53261592,19328.0,19327.0,0.76350387]
[1664611805799,0.53261592,19328.0,19327.0,0.40528087]
[1664611806040,0.53261592,19328.0,19327.0,0.47169236]
[1664611806292,0.51161592,19328.0,19327.0,0.52404436]
[1664611807143,0.53261592,19328.0,19327.0,0.60004436]
[1664611807720,0.53261592,19328.0,19327.0,0.9479215]
[1664611807930,0.53261592,19328.0,19327.0,0.60004436]
[1664611808386,0.51161592,19328.0,19327.0,0.52404436]
[1664611809023,0.53361592,19328.0,19327.0,0.60004436]
[1664611809237,0.53361592,19328.0,19327.0,0.8979215]
[1664611809365,0.53361592,19328.0,19327.0,0.55004436]
[1664611810272,0.51161592,19328.0,19327.0,0.47404436]
[1664611810545,0.51630644,19328.0,19327.0,0.47990298]
[1664611810730,0.51630644,19328.0,19327.0,0.35055098]
[1664611810949,0.51630644,19328.0,19327.0,0.42655098]
[1664611811115,0.53830644,19328.0,19327.0,0.42655098]
[1664611811544,0.53830644,19328.0,19327.0,0.36013949]
[1664611812206,0.51630644,19328.0,19327.0,0.28413949]
[1664611813109,0.53830644,19328.0,19327.0,0.36013949]
[1664611814265,0.53830644,19328.0,19327.0,0.28413949]
[1664611814475,0.51630644,19328.0,19327.0,0.28413949]
[1664611815128,0.53830644,19328.0,19327.0,0.36013949]
[1664611816548,0.53830644,19328.0,19327.0,0.28413949]
[1664611816549,0.51630644,19328.0,19327.0,0.28413949]
[1664611817142,0.53830644,19328.0,19327.0,0.36013949]
[1664611817607,0.53830644,19328.0,19327.0,0.27516839]
[1664611818200,0.51630644,19328.0,19327.0,0.19916839]
[1664611819042,0.53730644,19328.0,19327.0,0.27516839]
[1664611819258,0.65974715,19328.0,19327.0,0.0878514]
[1664611820155,0.7003168,19328.0,19327.0,0.0878514]
[1664611820815,0.6793168,19328.0,19327.0,0.0118514]
[1664611821034,1.22740167,19328.0,19327.0,0.0858514]
[1664611821256,1.65499805,19328.0,19327.0,0.0858514]
[1664611821481,1.65487636,19328.0,19327.0,0.0858514]
[1664611821704,1.65502853,19328.0,19327.0,0.0858514]
[1664611821937,1.30856487,19328.0,19327.0,0.0858514]
[1664611822170,1.30856487,19328.0,19327.0,0.0118514]
[1664611822171,1.29356487,19328.0,19327.0,0.0118514]
[1664611823042,1.30756487,19328.0,19327.0,0.0848514]
[1664611823496,1.30756487,19328.0,19323.0,0.1]
[1664611823497,0.05,19324.0,19323.0,0.1]
[1664611823737,0.05,19324.0,19320.0,0.201]
[1664611823738,0.311,19323.0,19320.0,0.101]
[1664611823970,0.51173144,19321.0,19320.0,0.101]
[1664611824132,1.30414808,19321.0,19320.0,0.101]
[1664611824718,0.95856308,19321.0,19320.0,0.101]
[1664611825204,1.38014808,19321.0,19320.0,0.101]
[1664611825660,1.44015895,19321.0,19320.0,0.101]
[1664611825890,1.09457395,19321.0,19320.0,0.101]
[1664611826119,0.79457395,19321.0,19320.0,0.101]
[1664611826356,1.01857395,19321.0,19320.0,0.101]
[1664611826825,0.77488395,19321.0,19320.0,0.101]
[1664611827057,1.07488395,19321.0,19320.0,0.101]
[1664611827283,1.15088395,19321.0,19320.0,0.101]
[1664611827514,0.79457395,19321.0,19320.0,0.101]
[1664611828426,0.71857395,19321.0,19320.0,0.101]
[1664611829182,0.79457395,19321.0,19320.0,0.101]
[1664611830531,0.71857395,19321.0,19320.0,0.101]
[1664611830753,1.01857395,19321.0,19320.0,0.101]
[1664611831199,0.79457395,19321.0,19320.0,0.101]
[1664611832168,1.09457395,19321.0,19320.0,0.101]
[1664611832408,1.01857395,19321.0,19320.0,0.101]
[1664611832641,1.01857395,19321.0,19320.0,0.10633947]
[1664611833088,1.09457395,19321.0,19320.0,0.10633947]
[1664611834466,1.01857395,19321.0,19320.0,0.10633947]
[1664611835121,1.09457395,19321.0,19320.0,0.10633947]
[1664611835644,0.79457395,19321.0,19320.0,0.10633947]
[1664611836534,0.71857395,19321.0,19320.0,0.10633947]
[1664611837047,1.01857395,19321.0,19320.0,0.10633947]
[1664611837287,0.79457395,19321.0,19320.0,0.10633947]
[1664611837522,1.09457395,19321.0,19320.0,0.10633947]
[1664611838406,1.01857395,19321.0,19320.0,0.10633947]
[1664611839329,1.09457395,19321.0,19320.0,0.10633947]
[1664611840218,1.15088395,19321.0,19320.0,0.10633947]
[1664611840440,1.07488395,19321.0,19320.0,0.10633947]
[1664611841169,1.11988395,19321.0,19320.0,0.10633947]
[1664611842445,1.07488395,19321.0,19320.0,0.10633947]
[1664611842660,1.47619895,19321.0,19320.0,0.10633947]
[1664611842878,1.47619895,19321.0,19320.0,0.00633947]
[1664611843125,2.47694695,19321.0,19320.0,0.00633947]
[1664611843292,2.13136195,19321.0,19320.0,0.00633947]
[1664611844483,2.08636195,19321.0,19320.0,0.00633947]
[1664611845188,2.13136195,19321.0,19320.0,0.00626833]
[1664611845823,1.97492593,19321.0,19320.0,0.00626833]
[1664611845946,2.02492593,19321.0,19320.0,0.00626833]
[1664611846396,1.97992593,19321.0,19320.0,0.00626833]
[1664611846609,1.92992593,19321.0,19320.0,0.00626833]
[1664611847287,1.97492593,19321.0,19320.0,0.00626833]
[1664611847504,1.91861593,19321.0,19320.0,0.00626833]
[1664611848406,1.87361593,19321.0,19320.0,0.00626833]
[1664611849278,1.91661593,19321.0,19320.0,0.00626833]
[1664611850334,2.58020093,19321.0,19320.0,0.00626833]
[1664611850731,2.63020093,19321.0,19320.0,0.00626833]
[1664611851379,2.72211514,19321.0,19320.0,0.00626833]
[1664611852542,2.68311514,19321.0,19320.0,0.00626833]
[1664611853100,2.72211514,19321.0,19320.0,0.00626833]
[1664611854447,2.68311514,19321.0,19320.0,0.00626833]
[1664611855296,2.72211514,19321.0,19320.0,0.00626833]
[1664611856635,2.68311514,19321.0,19320.0,0.00626833]
[1664611857326,2.72211514,19321.0,19320.0,0.00626833]
[1664611857770,2.67211514,19321.0,19320.0,0.00626833]
[1664611857995,2.72211514,19321.0,19320.0,0.00626833]
[1664611858665,2.67211514,19321.0,19320.0,0.00626833]
[1664611858797,2.68311514,19321.0,19320.0,0.00626833]
[1664611859003,2.63311514,19321.0,19320.0,0.00626833]
[1664611859214,2.67211514,19321.0,19320.0,0.00626833]
[1664611860537,2.68311514,19321.0,19320.0,0.00626833]
[1664611861153,2.72211514,19321.0,19320.0,0.00626833]
[1664611861441,2.27653014,19321.0,19320.0,0.00626833]
[1664611861659,2.22361593,19321.0,19320.0,0.00626833]
[1664611861891,2.27361593,19321.0,19320.0,0.00626833]
[1664611862368,2.61920093,19321.0,19320.0,0.00626833]
[1664611862606,2.58020093,19321.0,19320.0,0.00626833]
[1664611862825,2.23461593,19321.0,19320.0,0.00626833]
[1664611863043,2.58020093,19321.0,19320.0,0.00626833]
[1664611863259,2.61920093,19321.0,19320.0,0.00626833]
[1664611863513,2.66920093,19321.0,19320.0,0.00626833]
[1664611863721,2.61920093,19321.0,19320.0,0.00626833]
[1664611864661,2.58020093,19321.0,19320.0,0.00626833]
[1664611865309,2.61820093,19321.0,19320.0,0.00626833]
[1664611865752,2.61392006,19321.0,19320.0,0.00626833]
[1664611866662,2.61392006,19321.0,19320.0,0.00616833]
[1664611866878,2.57592006,19321.0,19320.0,0.00616833]
[1664611867414,2.61492006,19321.0,19320.0,0.00616833]
[1664611867861,2.75694163,19321.0,19320.0,0.00616833]
[1664611868300,2.89241091,19321.0,19320.0,0.00616833]
[1664611868509,2.85341091,19321.0,19320.0,0.00616833]
[1664611868945,2.76795208,19321.0,19320.0,0.00616833]
[1664611869211,2.70707074,19321.0,19320.0,0.00616833]
[1664611869505,2.74607074,19321.0,19320.0,0.00616833]
[1664611869713,2.80695244,19321.0,19320.0,0.00616833]
[1664611870003,2.74607074,19321.0,19320.0,0.00616833]
[1664611870222,2.80695205,19321.0,19320.0,0.00616833]
[1664611870438,2.74607074,19321.0,19320.0,0.00616833]
[1664611870662,2.90685787,19321.0,19320.0,0.00616833]
[1664611870859,2.90183389,19321.0,19320.0,0.00616833]
[1664611871329,2.94083389,19321.0,19320.0,0.00616833]
[1664611871473,2.94083391,19321.0,19320.0,0.00616833]
[1664611872543,2.90183391,19321.0,19320.0,0.00616833]
[1664611872759,2.75495926,19321.0,19320.0,0.00616833]
[1664611873162,2.89530541,19321.0,19320.0,0.00616833]
[1664611873374,2.93430541,19321.0,19320.0,0.00616833]
[1664611874157,2.88430541,19321.0,19320.0,0.00616833]
[1664611874379,2.88561579,19321.0,19320.0,0.00616833]
[1664611874512,2.89661579,19321.0,19320.0,0.00616833]
[1664611874735,2.81584176,19321.0,19320.0,0.00616833]
[1664611875040,2.75495926,19321.0,19320.0,0.00616833]
[1664611875218,2.81584154,19321.0,19320.0,0.00616833]
[1664611875432,2.85484154,19321.0,19320.0,0.00616833]
[1664611876006,2.79395926,19321.0,19320.0,0.00616833]
[1664611876155,2.93561617,19321.0,19320.0,0.00616833]
[1664611876383,2.89539761,19321.0,19320.0,0.00616833]
[1664611876787,2.81584215,19321.0,19320.0,0.00616833]
[1664611877222,2.80639761,19321.0,19320.0,0.00616833]
[1664611877420,2.45925891,19321.0,19320.0,0.00616833]
[1664611877725,2.80484391,19321.0,19320.0,0.00616833]
[1664611878504,2.75495926,19321.0,19320.0,0.00616833]
[1664611878742,2.8158445,19321.0,19320.0,0.00616833]
[1664611878953,2.7658445,19321.0,19320.0,0.00616833]
[1664611879163,2.80639761,19321.0,19320.0,0.00616833]
[1664611879405,2.74295926,19321.0,19320.0,0.00616833]
[1664611879616,2.93424058,19321.0,19320.0,0.00616833]
[1664611880057,2.75384512,19321.0,19320.0,0.00616833]
[1664611880284,2.40826012,19321.0,19320.0,0.00616833]
[1664611880490,2.28910944,19321.0,19320.0,0.00616833]
[1664611880752,2.31734762,19321.0,19320.0,0.00616833]
[1664611881301,2.35534762,19321.0,19320.0,0.00616833]
[1664611881540,2.35534762,19321.0,19320.0,0.26673766]
[1664611881541,1.5163653,19321.0,19320.0,0.26673766]
[1664611881778,0.129297,19322.0,19320.0,0.97054566]
[1664611882001,0.51173144,19321.0,19320.0,0.36439133]
[1664611882232,0.04058921,19325.0,19321.0,0.03643913]
[1664611882470,0.04058921,19324.0,19322.0,0.52511324]
[1664611882697,0.04058921,19324.0,19322.0,0.52523564]
[1664611883195,4.74231593,19324.0,19322.0,0.52523564]
[1664611883423,4.72443007,19324.0,19322.0,0.17763114]
[1664611883646,4.72443007,19324.0,19322.0,0.30707514]
[1664611883872,4.72443007,19324.0,19322.0,0.31174147]
[1664611884097,4.68384086,19324.0,19322.0,0.31174147]
[1664611884540,4.64084086,19324.0,19322.0,0.31174147]
[1664611884762,0.56173144,19323.0,19322.0,0.31578885]
[1664611885028,0.81173144,19323.0,19322.0,0.31578885]
[1664611885445,0.88173144,19323.0,19322.0,0.31578885]
[1664611885675,0.88173144,19323.0,19322.0,0.31174147]
[1664611886633,0.81173144,19323.0,19322.0,0.31174147]
[1664611886862,0.51173144,19323.0,19322.0,0.31578871]
[1664611887307,0.88173144,19323.0,19322.0,0.31578871]
[1664611887746,0.58173144,19323.0,19322.0,0.31578871]
[1664611888667,0.51173144,19323.0,19322.0,0.31578871]
[1664611889421,0.58173144,19323.0,19322.0,0.31578871]
[1664611890542,0.51173144,19323.0,19322.0,0.37031278]
[1664611891517,0.58173144,19323.0,19322.0,0.37031278]
[1664611891859,0.58173144,19323.0,19322.0,0.31578871]
[1664611892531,0.51173144,19323.0,19322.0,0.31578871]
[1664611893483,0.55473144,19323.0,19322.0,0.31578871]
[1664611894198,1.51333594,19323.0,19322.0,0.13815757]
[1664611894671,1.47033594,19323.0,19322.0,0.13815757]
[1664611894874,1.96637999,19323.0,19322.0,0.13815757]
[1664611895107,1.96637999,19323.0,19322.0,0.00871357]
[1664611895476,2.04137999,19323.0,19322.0,0.00871357]
[1664611896971,1.96637999,19323.0,19322.0,0.00871357]
[1664611897438,2.0819692,19323.0,19322.0,0.00871357]
[1664611897662,2.19576226,19323.0,19322.0,0.00871357]
[1664611897933,2.1348764,19323.0,19322.0,0.00871357]
[1664611898378,1.74668269,19323.0,19322.0,0.00871357]
[1664611898601,1.7122719,19323.0,19322.0,0.00871357]
[1664611898837,2.0598764,19323.0,19322.0,0.00871357]
[1664611899288,2.1258764,19323.0,19322.0,0.00871357]
[1664611900620,2.0598764,19323.0,19322.0,0.00871357]
[1664611901463,2.1258764,19323.0,19322.0,0.00871357]
[1664611902698,2.12076226,19323.0,19322.0,0.00871357]
[1664611903498,2.16276226,19323.0,19322.0,0.00871357]
[1664611903938,2.1018764,19323.0,19322.0,0.00871357]
[1664611904661,2.0598764,19323.0,19322.0,0.00871357]
[1664611905558,2.1018764,19323.0,19322.0,0.00871357]
[1664611906784,2.0598764,19323.0,19322.0,0.00871357]
[1664611907012,2.0598764,19323.0,19322.0,0.00861932]
[1664611907240,1.7122719,19323.0,19322.0,0.00861932]
[1664611907466,1.25822785,19323.0,19322.0,0.00861932]
[1664611908416,1.60583235,19323.0,19322.0,0.00861932]
[1664611908642,1.56383235,19323.0,19322.0,0.00861932]
[1664611908840,1.62471821,19323.0,19322.0,0.00861932]
[1664611909501,1.66671821,19323.0,19322.0,0.00861932]
[1664611909719,2.16276226,19323.0,19322.0,0.00861932]
[1664611910597,2.1018764,19323.0,19322.0,0.00861932]
[1664611910809,2.12076226,19323.0,19322.0,0.00861932]
[1664611911379,2.16276226,19323.0,19322.0,0.00861932]
[1664611912484,2.12217305,19323.0,19322.0,0.00861932]
[1664611912698,2.08017305,19323.0,19322.0,0.00861932]
[1664611913517,2.12217305,19323.0,19322.0,0.00861932]
[1664611914078,2.20332373,19323.0,19322.0,0.00861932]
[1664611915006,2.16132373,19323.0,19322.0,0.00861932]
[1664611915470,2.16274185,19323.0,19322.0,0.00861932]
[1664611915680,2.28713704,19323.0,19322.0,0.00861932]
[1664611916909,2.32601958,19323.0,19322.0,0.00861932]
[1664611917137,2.32601262,19323.0,19322.0,0.00861932]
[1664611917634,2.40401262,19323.0,19322.0,0.00861932]
[1664611918783,2.2448689,19323.0,19322.0,0.00861932]
[1664611919235,2.32601529,19323.0,19322.0,0.00861932]
[1664611919465,2.40401529,19323.0,19322.0,0.00861932]
[1664611920372,2.3228689,19323.0,19322.0,0.00861932]
[1664611920880,2.2448689,19323.0,19322.0,0.00861932]
[1664611921127,2.32601503,19323.0,19322.0,0.00861932]
[1664611921543,2.40401503,19323.0,19322.0,0.00861932]
[1664611922540,1.97257063,19323.0,19322.0,0.00861932]
[1664611922755,1.89457063,19323.0,19322.0,0.00861932]
[1664611922972,2.24217513,19323.0,19322.0,0.00861932]
[1664611923461,2.27817513,19323.0,19322.0,0.00861932]
[1664611923671,2.21731586,19323.0,19322.0,0.00861932]
[1664611924130,2.31875421,19323.0,19322.0,0.00861932]
[1664611924371,2.3609751,19323.0,19322.0,0.00861932]
[1664611924739,2.3249751,19323.0,19322.0,0.00861932]
[1664611924977,2.18131586,19323.0,19322.0,0.00861932]
[1664611925170,2.3250251,19323.0,19322.0,0.00861932]
[1664611925376,2.24388054,19323.0,19322.0,0.00861932]
[1664611925627,2.40303149,19323.0,19322.0,0.00861932]
[1664611926735,1.97742699,19323.0,19322.0,0.00861932]
[1664611927158,2.32503149,19323.0,19322.0,0.00861932]
[1664611927528,2.05542699,19323.0,19322.0,0.00861932]
[1664611927743,2.40303149,19323.0,19322.0,0.00861932]
[1664611928116,2.40303001,19323.0,19322.0,0.00861932]
[1664611928346,2.36075857,19323.0,19322.0,0.00861932]
[1664611928594,2.40303031,19323.0,19322.0,0.00861932]
[1664611928841,2.28275857,19323.0,19322.0,0.00861932]
[1664611929055,2.32502983,19323.0,19322.0,0.00861932]
[1664611929480,2.32388539,19323.0,19322.0,0.00861932]
[1664611929657,2.25932022,19323.0,19322.0,0.00861932]
[1664611929887,2.36075857,19323.0,19322.0,0.00861932]
[1664611930098,2.4018849,19323.0,19322.0,0.00861932]
[1664611930769,2.3238849,19323.0,19322.0,0.00861932]
[1664611931169,2.32377738,19323.0,19322.0,0.0085083]
[1664611931598,2.40177738,19323.0,19322.0,0.0085083]
[1664611932923,2.24262689,19323.0,19322.0,0.0085083]
[1664611933392,2.32378429,19323.0,19322.0,0.0085083]
[1664611933608,2.40178429,19323.0,19322.0,0.0085083]
[1664611934264,2.32062689,19323.0,19322.0,0.0085083]
[1664611934933,1.97618412,19323.0,19322.0,0.0085083]
[1664611935160,1.48014007,19323.0,19322.0,0.0085083]
[1664611935709,1.55814007,19323.0,19322.0,0.0085083]
[1664611935945,1.55804088,19323.0,19322.0,0.0085083]
[1664611936746,1.48004088,19323.0,19322.0,0.0085083]
[1664611937189,1.82764538,19323.0,19322.0,0.0085083]
[1664611937620,1.55804088,19323.0,19322.0,0.0085083]
[1664611938359,1.90564538,19323.0,19322.0,0.0085083]
[1664611938567,1.82448365,19323.0,19322.0,0.0085083]
[1664611938811,1.39887915,19323.0,19322.0,0.0085083]
[1664611939037,1.34627581,19323.0,19322.0,0.0085083]
[1664611939641,1.38227581,19323.0,19322.0,0.0085083]
[1664611940069,1.38227581,19323.0,19322.0,0.01230408]
[1664611940953,1.34627581,19323.0,19322.0,0.01230408]
[1664611941635,1.42427581,19323.0,19322.0,0.01230408]
[1664611943003,1.34627581,19323.0,19322.0,0.01230408]
[1664611943706,1.42427581,19323.0,19322.0,0.01230408]
[1664611944132,1.34308941,19323.0,19322.0,0.01230408]
[1664611944949,1.34627728,19323.0,19322.0,0.01230408]
[1664611945628,1.42427728,19323.0,19322.0,0.01230408]
[1664611946701,1.3991957,19323.0,19322.0,0.01230408]
[1664611946956,1.40238381,19323.0,19322.0,0.01230408]
[1664611947406,1.3211957,19323.0,19322.0,0.01230408]
[1664611947629,1.3991957,19323.0,19322.0,0.01230408]
[1664611947885,1.42427587,19323.0,19322.0,0.01230408]
[1664611948111,1.42507745,19323.0,19322.0,0.01230408]
[1664611948891,1.34707745,19323.0,19322.0,0.01230408]
[1664611949373,1.20381038,19323.0,19322.0,0.01230408]
[1664611949584,1.34691845,19323.0,19322.0,0.01230408]
[1664611949800,1.42491845,19323.0,19322.0,0.01230408]
[1664611950425,1.38324873,19323.0,19322.0,0.01230408]
[1664611950876,1.3469183,19323.0,19322.0,0.01230408]
[1664611951444,1.34691889,19323.0,19322.0,0.01230408]
[1664611951699,1.38324873,19323.0,19322.0,0.01230408]
[1664611951904,1.42491821,19323.0,19322.0,0.01230408]
[1664611952146,1.28181038,19323.0,19322.0,0.01230408]
[1664611952281,1.34269797,19323.0,19322.0,0.01230408]
[1664611952494,1.28181038,19323.0,19322.0,0.01230408]
[1664611952727,1.38324873,19323.0,19322.0,0.01230408]
[1664611952955,1.30524873,19323.0,19322.0,0.01230408]
[1664611953159,1.34707913,19323.0,19322.0,0.01230408]
[1664611953421,1.30524873,19323.0,19322.0,0.01230408]
[1664611953652,1.34124873,19323.0,19322.0,0.01230408]
[1664611954242,1.30069738,19323.0,19322.0,0.01230408]
[1664611954947,1.26469738,19323.0,19322.0,0.01230408]
[1664611955835,1.30069738,19323.0,19322.0,0.01230408]
[1664611956275,1.26010007,19323.0,19322.0,0.01222764]
[1664611956497,1.21951092,19323.0,19322.0,0.01222764]
[1664611956614,0.91951092,19323.0,19322.0,0.01222764]
[1664611956828,1.21951092,19323.0,19322.0,0.01222764]
[1664611957080,0.88351092,19323.0,19322.0,0.01222764]
[1664611957288,0.92409953,19323.0,19322.0,0.01222764]
[1664611957507,0.86321253,19323.0,19322.0,0.01222764]
[1664611957713,1.00209953,19323.0,19322.0,0.01222764]
[1664611959044,0.92409953,19323.0,19322.0,0.01222764]
[1664611959621,0.86321253,19323.0,19322.0,0.01222764]
[1664611959840,0.85862392,19323.0,19322.0,0.01222764]
[1664611960848,0.82262392,19323.0,19322.0,0.01222764]
[1664611961721,0.86662392,19323.0,19322.0,0.01222764]
[1664611961958,0.55562392,19323.0,19322.0,0.01222764]
[1664611962436,0.55562392,19323.0,19322.0,0.55018944]
[1664611963194,0.51162392,19323.0,19322.0,0.07319894]